[Event "Czech Youth Championship Open 2023"]
[Site "Teplice"]
[Date "2023.03.12"]
[Round "2.2"]
[White "Pavlis, Matej"]
[Black "Matejovsky, Ondrej"]
[Result "1-0"]
[ECO "D02"]
[WhiteElo "1868"]
[BlackElo "1931"]
[Annotator "TA"]
[PlyCount "73"]
[EventDate "2023.03.09"]
[EventType "swiss"]
[EventCountry "CZE"]
[SourceTitle "playchess.com"]
[Source "ChessBase"]
[SourceQuality "1"]
[TimeControl "5400+30"]

{[%evp 17,73,44,58,41,81,46,49,58,63,0,0,0,0,0,0,0,1,0,27,13,35,31,32,18,27,30,22,32,57,72,71,80,87,82,170,137,191,207,443,445,538,525,1239,1231,1213,1189,1340,1300,1662,1365,29979,29980,29987,29987,29990,29991,29991,29992]} 1. d4 {[%emt 0:00:02]} d5 {[%emt 0:00:14]} 2. Nf3 {[%emt 0:00:06]} Nf6 {[%emt 0:00:20]} 3. c4 {[%emt 0:00:12]} e6 {[%emt 0:00:42]} 4. g3 {[%emt 0:00:47]} Bb4+ {[%emt 0:02:46]} 5. Bd2 {[%emt 0:00:38]} Bxd2+ {[%emt 0:02:27]} 6. Nbxd2 {[%emt 0:00:27]} O-O {[%emt 0:02:02]} 7. Bg2 {[%emt 0:02:13]} c6 {[%emt 0:16:09]} 8. O-O {[%emt 0:03:15]} Nbd7 {[%emt 0:02:59]} 9. Qc2 {[%emt 0:04:35]} Re8 {[%emt 0:05:03]} 10. Rfd1 {[%emt 0:03:04] E11: Bogo-Indian.} Qe7 {[%emt 0:05:59] [#]} 11. e3 $146 {[%emt 0:03:33]} ({Predecessor:} 11. Rac1 Nf8 12. Ne5 N6d7 13. Nd3 Ng6 14. e3 Nf6 15. b4 Bd7 16. Nc5 Rab8 17. a4 Red8 {0-1 Zong,D (2129)-Arencibia Monduy,A (2148) PNWCC Online blitz JP 17th 2020 (8)}) 11... e5 {[%emt 0:09:49]} 12. cxd5 {[%emt 0:05:58] White is slightly better.} Nxd5 {[%emt 0:01:19]} 13. Nc4 {[%emt 0:01:53]} ({White should try} 13. e4 $14 N5b6 14. Nb3) 13... e4 $11 {[%emt 0:06:25]} 14. Nfe5 {[%emt 0:02:56]} f6 {[%emt 0:04:17]} 15. Nxd7 {[%emt 0:01:17]} Bxd7 {[%emt 0:00:14]} 16. a3 {[%emt 0:00:56]} Rad8 {[%emt 0:07:22]} 17. Nd2 {[%emt 0:03:10][%cal Rc2e4,Bc4d2,Bd2b3,Bb3c5][%mdl 32]} Bf5 {[%emt 0:01:11]} 18. b4 {[%emt 0:04:00]} Rd7 {[%emt 0:04:49]} 19. Rdc1 {[%emt 0:02:24]} Qe6 {[%emt 0:03:44]} 20. Nb3 {[%emt 0:01:34] [#] And now Nc5 would win.} Rde7 {[%emt 0:00:29]} 21. Nc5 {[%emt 0:00:15]} Qf7 {[%emt 0:00:58]} 22. Rab1 {[%emt 0:02:33]} a6 {[%emt 0:00:51]} 23. a4 {[%emt 0:02:35][%cal Ba3a4,Ba4b5,Bb5b6][%mdl 32]} h5 {[%emt 0:04:13][%cal Oh5h4]} 24. b5 {[%emt 0:00:46]} cxb5 {[%emt 0:02:23]} 25. axb5 {[%emt 0:00:17]} a5 {[%emt 0:00:50]} (25... Rc8 $16 {might work better.}) 26. b6 $18 {[%emt 0:01:53]} Nb4 {[%emt 0:01:56]} (26... h4 $16 {was necessary.} 27. Rb5 Nb4) 27. Qa4 {[%emt 0:01:14]} Nc6 $2 {[%emt 0:03:08]} (27... Na2) 28. Bf1 {[%emt 0:02:14] aiming for Bc4.} ({Don't play} 28. Nxb7 Rxb7 29. Qxc6 Kh7 $18) 28... Qg6 {[%emt 0:01:59] [#]} 29. Nxb7 {[%emt 0:03:07][%mdl 512]} Nxd4 {[%emt 0:01:40]} (29... Rxb7 30. Qxc6) 30. Qxd4 {[%emt 0:00:03]} Rxb7 {[%emt 0:00:24]} 31. Qd5+ {[%emt 0:00:04]} Rf7 {[%emt 0:00:44]} 32. b7 {[%emt 0:00:15]} Rb8 {[%emt 0:01:13]} 33. Bc4 {[%emt 0:00:48]} h4 {[%emt 0:02:10]} 34. Qd6 {[%emt 0:00:37] White mates.} hxg3 {[%emt 0:01:50]} 35. Bxf7+ {[%emt 0:00:22]} Qxf7 {[%emt 0:00:18]} 36. Qxb8+ {[%emt 0:00:08]} Kh7 {[%emt 0:00:13]} 37. Qxg3 {[%emt 0:00:17] Weighted Error Value: White=0.06 (flawless) /Black=0.54} 1-0

[Event "Czech Youth Championship Open 2023"]
[Site "Teplice"]
[Date "2023.03.12"]
[Round "2.3"]
[White "Hlavac, Rudolf"]
[Black "Zednicek, Filip"]
[Result "0-1"]
[ECO "C63"]
[WhiteElo "1985"]
[BlackElo "1885"]
[Annotator "TA"]
[PlyCount "66"]
[EventDate "2023.03.09"]
[EventType "swiss"]
[EventCountry "CZE"]
[SourceTitle "playchess.com"]
[Source "ChessBase"]
[SourceQuality "1"]
[TimeControl "5400+30"]

{[%evp 29,66,29,24,24,30,29,33,29,33,10,23,2,11,0,30,8,49,0,0,0,0,-5,-12,-94,-62,-66,-60,-60,-64,-62,-60,-48,-4,-231,-221,-1454,-1457,-29994,-29995]} 1. e4 {[%emt 0:08:24]} e5 {[%emt 0:00:07]} 2. Nf3 {[%emt 0:00:06]} Nc6 {[%emt 0:00:04]} 3. Bb5 {[%emt 0:00:23]} f5 {[%emt 0:00:08]} 4. Nc3 {[%emt 0:00:21]} fxe4 {[%emt 0:00:18]} 5. Nxe4 {[%emt 0:00:26]} d5 {[%emt 0:00:05]} 6. Nxe5 {[%emt 0:00:14]} dxe4 {[%emt 0:00:20]} 7. Nxc6 {[%emt 0:01:23]} Qg5 {[%emt 0:00:07]} 8. Qe2 {[%emt 0:00:25]} Nf6 {[%emt 0:00:21]} 9. f4 {[%emt 0:09:26]} Qxf4 {[%emt 0:00:39]} 10. Ne5+ {[%emt 0:00:21]} c6 {[%emt 0:00:10]} 11. d4 {[%emt 0:00:12]} Qh4+ {[%emt 0:00:05]} 12. g3 {[%emt 0:00:16]} Qh3 {[%emt 0:00:02]} 13. Bc4 {[%emt 0:00:11]} Be6 {[%emt 0:00:02]} 14. Bg5 {[%emt 0:02:58]} O-O-O {[%emt 0:00:10]} 15. O-O-O {[%emt 0:02:19]} Bd6 {[%emt 0:00:24]} 16. Nf7 {[%emt 0:07:19] has lost popularity (16.Bxe6+). C63: Ruy Lopez: Schliemann/Jaenisch Defence.} Bxf7 {[%emt 0:19:30]} 17. Bxf7 {[%emt 0:01:26]} Rhf8 {[%emt 0:02:03]} 18. Bc4 {[%emt 0:01:36] White is slightly better.} Qf5 {[%emt 0:01:13]} 19. Bxf6 {[%emt 0:01:39]} Rxf6 {[%emt 0:00:58] [#]} 20. Rde1 $146 {[%emt 0:09:51]} ({Predecessor:} 20. Rhf1 Qg5+ 21. Kb1 Re8 22. c3 Kb8 23. Bb3 e3 24. Rxf6 gxf6 25. Rf1 f5 26. Bc2 {½-½ Vitkevicius,J (2311)-Van Vugt,W (2233) CL/0406/C1-3 email 2004}) 20... Re8 {[%emt 0:04:15]} 21. Qe3 {[%emt 0:02:15]} Qf2 {[%emt 0:07:26]} 22. c3 (22. Bd3 $5) 22... b5 {[%emt 0:08:55]} 23. Bb3 {[%emt 0:12:25]} (23. Bd3 $14 {might be stronger.}) 23... Rf3 $11 {[%emt 0:01:16]} 24. Qxf2 {[%emt 0:03:09]} Rxf2 {[%emt 0:01:11]} 25. Re3 {[%emt 0:01:22]} b4 $36 {[%emt 0:04:01][%mdl 2048] Black is pushing.} 26. c4 {[%emt 0:04:10]} (26. Bc4 $11) 26... c5 {[%emt 0:00:21] Black is much more active.} 27. Rhe1 {[%emt 0:04:09]} cxd4 {[%emt 0:01:11]} 28. Rxe4 {[%emt 0:00:16]} Rxe4 {[%emt 0:00:05]} 29. Rxe4 {[%emt 0:00:03]} Rxh2 $15 {[%emt 0:00:05] KRB-KRB} 30. g4 {[%emt 0:03:03]} d3 {[%emt 0:00:52] [#] White must now prevent ...g5.} 31. Bd1 $2 {[%emt 0:01:20]} (31. c5 $1 $11 {and White is okay.} Re2 32. Rxb4) 31... g5 {[%emt 0:04:31] aiming for ...Bf4+.} 32. c5 $2 {[%emt 0:06:02]} (32. Rd4 Bf4+ 33. Kb1) 32... Bf4+ $19 {[%emt 0:00:43]} (32... Bxc5 $2 33. Rc4 $18) 33. Kb1 {[%emt 0:00:16]} Rh1 {[%emt 0:00:28] Weighted Error Value: White=0.89/Black=0.10 (very precise)} 0-1

[Event "Czech Youth Championship Open 2023"]
[Site "Teplice"]
[Date "2023.03.12"]
[Round "2.4"]
[White "Juracak, David"]
[Black "Mrkvan, Frantisek"]
[Result "1/2-1/2"]
[ECO "D40"]
[WhiteElo "1820"]
[BlackElo "1727"]
[Annotator "NA RC COMBH"]
[PlyCount "152"]
[EventDate "2023.03.09"]
[EventType "swiss"]
[EventCountry "CZE"]
[SourceTitle "playchess.com"]
[Source "ChessBase"]
[SourceQuality "1"]
[TimeControl "5400+30"]

1. d4 {[%emt 0:00:02]} d5 {[%emt 0:00:38]} 2. c4 {[%emt 0:00:06]} e6 {[%emt 0:00:09]} 3. Nf3 {[%emt 0:00:25]} Nf6 {[%emt 0:00:29]} 4. Nc3 {[%emt 0:00:58]} c5 {[%emt 0:00:42]} 5. Bg5 {[%emt 0:00:38]} Be7 {[%emt 0:05:43]} 6. cxd5 {[%emt 0:01:55]} exd5 {[%emt 0:03:20]} 7. dxc5 {[%emt 0:00:12]} Be6 {[%emt 0:01:03]} 8. e3 {[%emt 0:01:15]} O-O {[%emt 0:03:11]} 9. Bd3 {[%emt 0:00:50]} Bxc5 {[%emt 0:01:04]} 10. O-O {[%emt 0:02:11]} Nc6 {[%emt 0:04:24]} 11. Rc1 {[%emt 0:00:30]} Bd6 {[%emt 0:01:42]} 12. Nb5 {[%emt 0:01:34]} Bb8 {[%emt 0:02:40]} 13. Qa4 {[%emt 0:14:17]} h6 {[%emt 0:14:06]} 14. Bh4 {[%emt 0:00:50]} a6 {[%emt 0:03:19]} 15. Nbd4 {[%emt 0:00:11]} Nxd4 {[%emt 0:00:11]} 16. Qxd4 {[%emt 0:00:05]} Ba7 {[%emt 0:02:02]} 17. Bxf6 {[%emt 0:02:49]} Qxf6 {[%emt 0:00:07]} 18. Qxf6 {[%emt 0:00:04]} gxf6 {[%emt 0:00:04]} 19. Rc7 {[%emt 0:00:20]} b5 {[%emt 0:03:19]} 20. Nh4 {[%emt 0:01:11]} Rfc8 {[%emt 0:04:41]} 21. Rfc1 {[%emt 0:00:17]} Bb6 {[%emt 0:00:27]} 22. Rxc8+ {[%emt 0:00:27]} Rxc8 {[%emt 0:00:08]} 23. Rxc8+ {[%emt 0:00:07]} Bxc8 {[%emt 0:00:03]} 24. Bf5 {[%emt 0:00:12]} Be6 {[%emt 0:00:32]} 25. Ng6 {[%emt 0:03:45]} Kg7 {[%emt 0:04:56]} 26. Ne7 {[%emt 0:03:14]} Bc5 {[%emt 0:01:37]} 27. Bxe6 {[%emt 0:00:09]} fxe6 {[%emt 0:00:05]} 28. Nc6 {[%emt 0:00:10]} Kf7 {[%emt 0:03:31]} 29. Kf1 {[%emt 0:01:14]} Bd6 {[%emt 0:03:04]} 30. h3 {[%emt 0:00:37]} Ke8 {[%emt 0:01:30]} 31. Ke2 {[%emt 0:00:27]} Kd7 {[%emt 0:04:30]} 32. Nd4 {[%emt 0:00:06]} f5 {[%emt 0:00:41]} 33. b3 {[%emt 0:00:31]} Be7 {[%emt 0:01:36]} 34. f4 {[%emt 0:01:34]} h5 {[%emt 0:02:15]} 35. Kd3 {[%emt 0:00:58]} Kd6 {[%emt 0:01:44]} 36. a4 {[%emt 0:04:36]} b4 {[%emt 0:05:09]} 37. Ne2 {[%emt 0:00:11]} Bh4 {[%emt 0:01:01]} 38. Ng1 {[%emt 0:01:07]} Bf6 {[%emt 0:00:46]} 39. Nf3 {[%emt 0:00:38]} Bg7 {[%emt 0:00:56]} 40. Ng5 {[%emt 0:04:56]} Bf6 {[%emt 0:01:06]} 41. Nf7+ {[%emt 0:02:01]} Ke7 {[%emt 0:00:33]} 42. Ne5 {[%emt 0:00:46]} Kd6 {[%emt 0:00:33]} 43. Ng6 {[%emt 0:00:30]} Bg7 {[%emt 0:00:53]} 44. Ke2 {[%emt 0:01:30]} Bf6 {[%emt 0:00:32]} 45. Kf2 {[%emt 0:00:42]} d4 {[%emt 0:04:32]} 46. Ke2 {[%emt 0:00:28]} dxe3 {[%emt 0:00:14]} 47. Kxe3 {[%emt 0:00:04]} Kd5 {[%emt 0:00:17]} 48. Nf8 {[%emt 0:00:22]} e5 {[%emt 0:04:28]} 49. fxe5 {[%emt 0:01:32]} Bxe5 {[%emt 0:00:24]} 50. Ng6 {[%emt 0:00:21]} Bd6 {[%emt 0:00:41]} 51. Nf4+ {[%emt 0:00:26]} Bxf4+ 52. Kxf4 {[%emt 0:00:03]} Kd4 {[%emt 0:00:20]} 53. Kxf5 {[%emt 0:00:10]} Kc3 {[%emt 0:00:04]} 54. g4 {[%emt 0:00:32]} hxg4 {[%emt 0:00:22]} 55. hxg4 {[%emt 0:00:10]} Kxb3 {[%emt 0:00:03]} 56. g5 {[%emt 0:00:19]} Kc3 {[%emt 0:00:07]} 57. g6 {[%emt 0:00:10]} b3 {[%emt 0:01:40]} 58. g7 {[%emt 0:00:03]} b2 {[%emt 0:00:02]} 59. g8=Q {[%emt 0:00:14]} b1=Q+ {[%emt 0:00:05]} 60. Ke5 {[%emt 0:00:14]} Qe1+ {[%emt 0:00:21]} 61. Kf4 {[%emt 0:00:16]} Qf2+ {[%emt 0:00:23]} 62. Ke5 {[%emt 0:00:22]} Qd4+ {[%emt 0:00:45]} 63. Kf5 {[%emt 0:00:07]} Qxa4 {[%emt 0:00:21]} 64. Qg3+ {[%emt 0:00:50]} Kb2 {[%emt 0:01:10]} 65. Qe5+ {[%emt 0:00:08]} Ka2 {[%emt 0:00:57]} 66. Qe6+ {[%emt 0:00:26]} Ka3 {[%emt 0:00:29]} 67. Qd6+ {[%emt 0:00:18]} Kb3 {[%emt 0:00:49]} 68. Qd3+ {[%emt 0:01:21]} Kb2 {[%emt 0:00:23]} 69. Kf6 {[%emt 0:02:11]} Qc6+ {[%emt 0:01:43]} 70. Ke7 {[%emt 0:00:39]} Qc5+ {[%emt 0:03:30]} 71. Kd8 {[%emt 0:01:29]} Qf8+ {[%emt 0:02:46]} 72. Kd7 {[%emt 0:00:51]} Qg7+ {[%emt 0:01:47]} 73. Kd8 {[%emt 0:00:21]} Qg5+ {[%emt 0:00:47]} 74. Kc8 {[%emt 0:01:01]} Qb5 {[%emt 0:00:27]} 75. Qd2+ {[%emt 0:00:42]} Ka3 {[%emt 0:00:40]} 76. Qc3+ {[%emt 0:01:00]} Ka2 {[%emt 0:01:42]} 1/2-1/2

[Event "Czech Youth Championship Open 2023"]
[Site "Teplice"]
[Date "2023.03.12"]
[Round "2.5"]
[White "Pressler, Tobias"]
[Black "Sadil, Antonin"]
[Result "1-0"]
[ECO "A02"]
[WhiteElo "2096"]
[BlackElo "1683"]
[Annotator "TA"]
[PlyCount "79"]
[EventDate "2023.03.09"]
[EventType "swiss"]
[EventCountry "CZE"]
[SourceTitle "playchess.com"]
[Source "ChessBase"]
[SourceQuality "1"]
[TimeControl "5400+30"]

{[%evp 9,79,4,32,8,36,20,8,-16,0,-41,0,-132,0,-60,14,20,5,10,12,-15,16,13,14,-14,0,-18,-6,-26,302,291,433,433,432,423,512,500,550,539,543,539,620,618,748,739,774,768,758,757,1424,1405,1375,1182,1182,987,1174,1164,1093,750,1043,896,839,793,1191,1183,1309,1508,2197,1951,2578,2056,29983,29984]} 1. f4 {[%emt 0:00:22]} c6 {[%emt 0:00:09]} 2. Nf3 {[%emt 0:00:11]} d5 {[%emt 0:00:12]} 3. g3 {[%emt 0:01:00]} Nf6 {[%emt 0:00:53]} 4. Bg2 {[%emt 0:00:09]} e6 {[%emt 0:00:33]} 5. O-O {[%emt 0:00:34] [#]} c5 $146 {[%emt 0:00:50]} ({Predecessor:} 5... Be7 6. d3 O-O 7. Qe1 Re8 8. e4 dxe4 9. dxe4 Bc5+ 10. Kh1 Qb6 11. h3 Nbd7 12. e5 {0-1 Christensen,T (2154)-Belova,O (2056) Titled Tuesday intern op 18th May blitz 2021 (8)}) 6. d3 {[%emt 0:00:30][%cal Oe2e4] A03: Bird's Opening with 1...d5.} Nc6 {[%emt 0:00:53]} 7. b3 {[%emt 0:00:52]} Be7 {[%emt 0:01:12]} 8. Bb2 {[%emt 0:00:29][%cal Oe2e4] The position is equal.} O-O {[%emt 0:00:35]} 9. Qe1 {[%emt 0:00:52]} b6 {[%emt 0:03:50]} 10. Ne5 {[%emt 0:00:30]} (10. e3 $11 {keeps the balance.}) 10... Bb7 {[%emt 0:01:23]} (10... Nxe5 $17 11. fxe5 Ng4) 11. Nd2 {[%emt 0:00:06]} ({White should play} 11. Nxc6 $11 Bxc6 12. a4) 11... Nd7 {[%emt 0:02:52]} ({Black should try} 11... Nxe5 $1 $15 12. Bxe5 Ng4) 12. Nxc6 $11 {[%emt 0:04:30]} Bxc6 {[%emt 0:00:15]} 13. e4 {[%emt 0:00:04]} Re8 {[%emt 0:04:09]} 14. f5 {[%emt 0:04:27] aiming for fxe6.} d4 {[%emt 0:06:29]} (14... Bf6 $5 {[%cal Rf6b2]} 15. fxe6 Rxe6 $11) 15. fxe6 {[%emt 0:06:37]} fxe6 {[%emt 0:00:14]} 16. h4 {[%emt 0:00:54]} Qc7 {[%emt 0:01:38]} 17. Bh3 {[%emt 0:00:12]} ({Much worse is} 17. Qf2 Rf8 18. Bf3 Rf6 $17) 17... Kh8 {[%emt 0:05:45]} 18. Bxe6 {[%emt 0:05:55] [#]} Bxh4 $2 {[%emt 0:00:30][%mdl 8192] A mistake that costs the game.} 19. Bxd7 $18 {[%emt 0:00:05]} Bxg3 {[%emt 0:00:30]} (19... Bxd7 $142 20. gxh4 Re6) 20. Bxe8 {[%emt 0:00:06]} Rxe8 {[%emt 0:01:38]} 21. Qe2 {[%emt 0:00:31]} Qe7 {[%emt 0:04:31]} 22. Qg4 {[%emt 0:00:29]} Bc7 {[%emt 0:01:39]} 23. Rf3 {[%emt 0:01:03]} Bd7 {[%emt 0:00:45]} 24. Qg2 {[%emt 0:00:06]} h6 {[%emt 0:01:26]} 25. Raf1 {[%emt 0:00:09] Rf7 would be deadly.} Kg8 {[%emt 0:02:19] Prevents Rf7.} 26. c3 {[%emt 0:00:16]} Be5 {[%emt 0:01:28]} 27. cxd4 {[%emt 0:00:18]} cxd4 {[%emt 0:00:10]} 28. Nc4 {[%emt 0:00:07]} Qc5 {[%emt 0:01:28]} 29. Qg6 {[%emt 0:01:12] Ba3 is the strong threat.} Re6 {[%emt 0:07:46] [#]} 30. Rf8+ $1 {[%emt 0:01:39]} Qxf8 {[%emt 0:00:08]} 31. Rxf8+ {[%emt 0:00:04]} Kxf8 {[%emt 0:00:08]} 32. Qf5+ {[%emt 0:00:05]} Bf6 {[%emt 0:02:11]} 33. e5 {[%emt 0:00:13]} Kg8 {[%emt 0:03:03]} 34. Bxd4 {[%emt 0:00:11]} Bg5 {[%emt 0:02:37]} 35. Be3 {[%emt 0:01:04]} Re7 {[%emt 0:01:47]} 36. Qe4 {[%emt 0:00:47]} Bxe3+ {[%emt 0:01:23]} 37. Nxe3 {[%emt 0:00:07]} a5 {[%emt 0:01:10]} 38. d4 {[%emt 0:00:08]} a4 {[%emt 0:01:11]} 39. bxa4 {[%emt 0:00:06]} Bxa4 {[%emt 0:00:06]} 40. Qa8+ {[%emt 0:00:04] Weighted Error Value: White=0.24 (precise) /Black=0.68} 1-0

[Event "Czech Youth Championship Open 2023"]
[Site "Teplice"]
[Date "2023.03.13"]
[Round "3.1"]
[White "Sadil, Antonin"]
[Black "Broz, Petr"]
[Result "1/2-1/2"]
[ECO "A15"]
[WhiteElo "1683"]
[BlackElo "1993"]
[Annotator "TA"]
[PlyCount "96"]
[EventDate "2023.03.09"]
[EventType "swiss"]
[EventCountry "CZE"]
[SourceTitle "playchess.com"]
[Source "ChessBase"]
[SourceQuality "1"]
[TimeControl "5400+30"]

{[%evp 16,96,25,22,21,16,46,40,44,37,41,33,45,18,21,21,23,0,14,18,16,-10,-28,-14,0,0,12,0,67,62,57,45,136,0,0,0,3,0,0,8,5,0,0,0,0,0,0,0,0,0,0,0,0,0,0,0,0,0,0,0,0,0,0,0,0,0,0,0,0,0,0,0,0,0,0,0,0,0,0,0,0,0,0]} 1. c4 {[%emt 0:00:27]} Nf6 {[%emt 0:01:21]} 2. g3 {[%emt 0:00:29]} g6 {[%emt 0:02:18]} 3. Bg2 {[%emt 0:01:12]} Bg7 {[%emt 0:01:06]} 4. Nf3 {[%emt 0:00:26]} O-O {[%emt 0:00:46]} 5. Nc3 {[%emt 0:02:05]} d6 {[%emt 0:01:04]} 6. O-O {[%emt 0:00:20]} c5 {[%emt 0:01:44]} 7. d3 {[%emt 0:02:16]} Nc6 {[%emt 0:03:40]} 8. a3 {[%emt 0:03:56]} a5 {[%emt 0:00:19]} 9. Rb1 {[%emt 0:03:07]} Bg4 {[%emt 0:02:12] A38: Symmetrical English vs ...g6: 4 Bg2 Bg7 5 Nf3 Nf6.} 10. h3 {[%emt 0:04:15]} Bxf3 {[%emt 0:00:23]} 11. Bxf3 {[%emt 0:00:16]} Qd7 {[%emt 0:00:15] White is slightly better.} 12. Bg2 {[%emt 0:03:27]} Rab8 {[%emt 0:01:57] [#]} 13. Nb5 $146 {[%emt 0:04:18]} ({Predecessor:} 13. Bd2 Ne8 14. Qa4 Nc7 15. Nd5 b5 16. cxb5 Nxb5 17. Nc3 Nba7 18. Rfc1 Rfd8 19. e3 {1-0 Antic,D (2388)-Sherman,R (2126) EU-ch 23rd Vrnjacka Banja 2023 (6)}) 13... Ne8 {[%emt 0:03:28]} 14. b3 {[%emt 0:03:11]} Nc7 {[%emt 0:02:29]} 15. Nxc7 {[%emt 0:00:23]} Qxc7 {[%emt 0:00:04]} 16. Bb2 {[%emt 0:00:22]} b5 {[%emt 0:01:04]} 17. Bxg7 {[%emt 0:01:47]} Kxg7 {[%emt 0:00:04]} 18. Bxc6 {[%emt 0:05:23]} Qxc6 {[%emt 0:00:05]} 19. Qd2 {[%emt 0:00:54]} bxc4 {[%emt 0:02:14]} 20. bxc4 {[%emt 0:00:17]} a4 {[%emt 0:02:27]} 21. Rb2 {[%emt 0:01:57]} d5 {[%emt 0:13:45]} (21... Rb7 $11) 22. Rfb1 $14 {[%emt 0:01:28][%cal Bf1b1,Bb1b6,Bb6a6][%mdl 32]} Rxb2 {[%emt 0:00:14]} 23. Qxb2+ {[%emt 0:00:14][%mdl 4096] Endgame KQR-KQR} f6 {[%emt 0:01:05] [#]} ({Black should try} 23... Kg8 $1 $14) 24. Qb6 {[%emt 0:02:00]} ({White should play} 24. Qb7 $1 $16 {[%cal Rb7c6]} Qxb7 25. Rxb7) 24... Qxb6 $11 {[%emt 0:00:42] The position is equal.} 25. Rxb6 {[%emt 0:00:12]} dxc4 {[%emt 0:00:02]} 26. dxc4 {[%emt 0:00:30] KR-KR} Rd8 {[%emt 0:00:03]} 27. Ra6 {[%emt 0:01:09]} Rd2 {[%emt 0:01:09]} 28. e3 {[%emt 0:00:31]} Rc2 {[%emt 0:00:14]} 29. Rxa4 {[%emt 0:00:20]} Kf7 {[%emt 0:00:13]} 30. Kg2 {[%emt 0:01:56]} h5 {[%emt 0:01:23]} 31. Kf3 {[%emt 0:00:25]} Ke6 {[%emt 0:01:54]} 32. g4 {[%emt 0:04:07]} h4 {[%emt 0:03:44]} 33. Ra6+ {[%emt 0:06:07]} Ke5 {[%emt 0:01:13]} 34. Ra7 {[%emt 0:01:06]} e6 {[%emt 0:00:14]} 35. a4 {[%emt 0:03:19]} Rxc4 {[%emt 0:00:55]} 36. a5 {[%emt 0:00:18]} Ra4 {[%emt 0:00:08]} 37. Ra8 {[%emt 0:00:17]} f5 {[%emt 0:16:04]} 38. gxf5 {[%emt 0:00:27]} exf5 {[%emt 0:01:32]} 39. a6 {[%emt 0:00:13] [#] aiming for a7.} Kf6 {[%emt 0:00:05]} 40. a7 {[%emt 0:00:34] Hoping for Rf8+.} Kg7 {[%emt 0:00:33] Prevents Rf8.} 41. Rc8 {[%emt 0:00:22]} Rxa7 {[%emt 0:00:04]} 42. Rxc5 {[%emt 0:00:13]} Ra4 {[%emt 0:00:12]} 43. Rc1 {[%emt 0:04:14]} Kh6 {[%emt 0:00:48]} 44. Re1 {[%emt 0:02:09]} Re4 {[%emt 0:03:29]} 45. Rg1 {[%emt 0:00:47]} Kh5 {[%emt 0:00:25]} 46. Rd1 {[%emt 0:01:45]} Ra4 {[%emt 0:00:07]} 47. Kg2 {[%emt 0:02:26]} Rb4 {[%emt 0:01:44]} 48. Rc1 {[%emt 0:00:53]} Ra4 {[%emt 0:01:13] Weighted Error Value: White=0.13 (very precise) /Black=0.12 (very precise)} 1/2-1/2

[Event "Czech Youth Championship Open 2023"]
[Site "Teplice"]
[Date "2023.03.13"]
[Round "3.2"]
[White "Mrkvan, Frantisek"]
[Black "Pressler, Tobias"]
[Result "1/2-1/2"]
[ECO "B01"]
[WhiteElo "1727"]
[BlackElo "2096"]
[Annotator "TA"]
[PlyCount "65"]
[EventDate "2023.03.09"]
[EventType "swiss"]
[EventCountry "CZE"]
[SourceTitle "playchess.com"]
[Source "ChessBase"]
[SourceQuality "1"]
[TimeControl "5400+30"]

{[%evp 9,65,50,47,52,50,27,30,22,27,25,28,26,29,25,24,18,40,36,56,36,52,33,41,25,71,44,66,39,77,78,91,62,62,65,56,-6,-3,-10,-8,-4,8,0,0,-7,0,0,15,11,13,7,20,8,29,17,38,49,52,43]} 1. e4 {[%emt 0:00:05]} d5 {[%emt 0:00:33]} 2. exd5 {[%emt 0:00:18]} Qxd5 {[%emt 0:00:04]} 3. Nc3 {[%emt 0:00:09]} Qd6 {[%emt 0:00:03]} 4. Nf3 {[%emt 0:02:08]} Nf6 {[%emt 0:00:20]} 5. d4 {[%emt 0:00:15]} c6 {[%emt 0:00:04]} 6. Be3 {[%emt 0:01:05] B01: Scandinavian Defence.} Bg4 {[%emt 0:00:10] The main line 6...Bg4 scores better than 6...Bf5.} 7. Be2 {[%emt 0:00:23]} e6 {[%emt 0:00:47]} 8. Qd2 {[%emt 0:01:11] White has an edge.} Qc7 {[%emt 0:00:05]} 9. h3 {[%emt 0:00:40]} Bxf3 {[%emt 0:01:08]} 10. Bxf3 {[%emt 0:02:28]} Nbd7 {[%emt 0:00:08]} 11. O-O-O {[%emt 0:01:59] [#]} Nb6 $146 {[%emt 0:00:40]} ({Predecessor:} 11... Bb4 12. a3 Bd6 13. Qe2 O-O 14. g4 b5 15. g5 Nd5 16. Nxd5 cxd5 17. h4 a5 {0-1 Utsab,C (1978)-Ram,S (2255) Bhopal op 2017 (3)}) 12. Qe2 {[%emt 0:00:34]} O-O-O {[%emt 0:01:08]} 13. Kb1 {[%emt 0:04:15]} h6 {[%emt 0:06:49]} 14. h4 {[%emt 0:02:49]} Be7 {[%emt 0:04:53]} 15. g3 {[%emt 0:03:28]} Nbd5 {[%emt 0:05:52]} 16. Nxd5 {[%emt 0:11:15]} cxd5 {[%emt 0:00:06]} (16... exd5 $11 {might be stronger.} 17. g4 Bd6) 17. Rc1 {[%emt 0:00:30]} Qc4 {[%emt 0:01:41]} 18. Qd2 {[%emt 0:09:16]} (18. Qxc4+ {simplifies} dxc4 19. c3 Nd5 20. Bd2) 18... Bb4 {[%emt 0:07:03]} 19. c3 {[%emt 0:00:13]} Ba5 {[%emt 0:00:27]} 20. Be2 {[%emt 0:01:08]} Qc6 {[%emt 0:01:04]} 21. Qd3 {[%emt 0:00:22]} Kb8 {[%emt 0:00:35]} 22. c4 {[%emt 0:00:26]} (22. Rc2 $14) 22... dxc4 $11 {[%emt 0:01:11]} 23. Qxc4 {[%emt 0:00:21]} Qxc4 {[%emt 0:00:40]} 24. Rxc4 {[%emt 0:00:10]} Rc8 {[%emt 0:00:15]} 25. Rhc1 {[%emt 0:02:39] [#] aiming for Bf4+.} Nd5 {[%emt 0:00:30][%cal Bf6d5,Bd5b6,Bb6d7,Bd7e5][%mdl 32]} 26. g4 {[%emt 0:05:46]} Bc7 {[%emt 0:04:45]} 27. Bf3 {[%emt 0:07:53]} Nb6 {[%emt 0:00:05]} 28. R4c3 {[%emt 0:00:25]} Bd6 {[%emt 0:00:51]} 29. h5 {[%emt 0:02:20]} Rxc3 {[%emt 0:03:21]} 30. Rxc3 {[%emt 0:00:15]} Nd7 {[%emt 0:06:00]} 31. Kc2 {[%emt 0:03:19]} e5 {[%emt 0:04:47]} 32. dxe5 {[%emt 0:02:38]} Nxe5 {[%emt 0:00:12]} 33. Bf4 {[%emt 0:01:21] Weighted Error Value: White=0.13 (very precise) /Black=0.10 (very precise)} 1/2-1/2